bitfinex/quotes_ETHUSD_20250724
["timestamp","ask_amount","ask_price","bid_price","bid_amount"]
[1753379165106,0.4829,3732.3,3732.2,4.74879262]
[1753379165465,0.4829,3732.3,3732.2,4.135]
[1753379165662,0.4829,3732.3,3732.2,4.76246]
[1753379166070,0.004,3732.3,3732.2,4.76246]
[1753379166394,0.004,3732.3,3732.2,8.61787327]
[1753379166601,0.004,3732.3,3732.2,15.12509788]
[1753379166803,0.004,3732.3,3732.2,15.25949788]
[1753379167214,0.00449618,3732.8,3732.3,2.67930734]
[1753379167420,0.00449618,3732.8,3732.5,2.81272163]
[1753379167619,0.48339618,3732.8,3732.6,4.134]
[1753379167783,0.4789,3732.7,3732.6,4.134]
[1753379167989,0.9157,3732.7,3732.6,4.134]
[1753379168482,0.9157,3732.7,3732.5,0.1336]
[1753379168483,1.7242,3732.7,3731.5,9.85462461]
[1753379168678,0.8085,3732.7,3732.0,2.67946345]
[1753379168881,0.8085,3732.7,3732.1,4.133]
[1753379168882,0.9157,3732.6,3732.1,4.133]
[1753379169112,0.9157,3732.5,3732.1,4.133]
[1753379169417,3.59487349,3732.5,3732.1,4.133]
[1753379169618,3.59499664,3732.4,3732.1,4.133]
[1753379169788,2.6793628,3732.3,3732.2,4.133]
[1753379170101,3.5950628,3732.3,3732.2,4.133]
[1753379170617,3.59501302,3732.3,3732.2,4.75709179]
[1753379170815,4.39291302,3732.3,3732.2,4.75709179]
[1753379171314,4.39291302,3732.3,3732.2,0.62409179]
[1753379171501,0.7674,3731.9,3731.5,0.61579595]
[1753379171680,0.9157,3731.8,3731.6,4.133]
[1753379171884,0.9157,3731.7,3731.6,4.133]
[1753379172110,0.29993705,3731.7,3731.6,4.133]
[1753379172889,0.7674,3731.9,3731.6,4.133]
[1753379173086,2.67938247,3732.3,3731.7,6.03612461]
[1753379173291,2.67938247,3732.3,3731.8,4.133]
[1753379173586,0.7736,3732.7,3731.8,6.83944135]
[1753379173930,2.67917711,3732.5,3731.8,6.81264463]
[1753379174129,2.67917711,3732.5,3731.9,0.95307269]
[1753379174296,0.4789,3732.4,3732.0,4.133]
[1753379174501,0.9157,3732.4,3732.0,4.133]
[1753379175120,0.4789,3732.5,3732.0,6.81246649]
[1753379175313,0.4789,3732.4,3732.1,0.4711]
[1753379175515,2.67910403,3732.6,3732.2,4.133]
[1753379175722,3.13950403,3732.6,3732.2,4.133]
[1753379176012,0.4604,3732.5,3732.2,4.133]
[1753379176190,0.4604,3732.4,3732.3,0.72612195]
[1753379176391,0.4604,3732.4,3732.3,4.85912195]
[1753379177085,0.4604,3732.4,3732.3,4.133]
[1753379179019,0.9351,3732.4,3732.3,4.133]
[1753379179220,0.4604,3732.4,3732.3,4.133]
[1753379181910,1.0687,3732.4,3732.3,4.133]
[1753379182111,1.0687,3732.4,3732.3,4.132]
[1753379182517,4.54284123,3732.4,3732.3,4.132]
[1753379184136,1.8636,3732.4,3732.3,4.132]
[1753379184333,4.54284123,3732.4,3732.3,4.132]
[1753379185605,1.8636,3732.4,3732.3,4.132]
[1753379186036,4.99734427,3732.4,3732.3,4.132]
[1753379187341,4.54286463,3732.4,3732.3,4.132]
[1753379188834,4.08246463,3732.4,3732.3,4.132]
[1753379189031,4.54286463,3732.4,3732.3,4.132]
[1753379191860,1.8636,3732.4,3732.3,4.132]
[1753379192822,4.54284123,3732.4,3732.3,4.132]
[1753379194469,0.1336,3732.4,3732.3,4.132]
[1753379194672,0.1356,3732.5,3732.3,5.07046]
[1753379194875,0.002,3732.5,3732.4,3.12794123]
[1753379196189,0.4624,3732.5,3732.3,4.62176]
[1753379196339,0.4624,3732.5,3732.3,6.81130723]
[1753379196538,0.002,3732.5,3732.3,6.81130723]
[1753379196740,0.4604,3732.4,3732.3,6.81130723]
[1753379197436,0.002,3732.5,3732.4,2.67924123]
[1753379197642,0.002,3732.5,3732.4,3.46803364]
[1753379197879,0.002,3732.5,3732.4,5.18926019]
[1753379199072,0.002,3732.5,3732.4,4.84916778]
[1753379199858,0.4624,3732.5,3732.4,4.131]
[1753379201980,0.4624,3732.5,3732.2,0.1336]
[1753379202149,0.4624,3732.5,3732.4,4.13]
[1753379202355,0.4624,3732.5,3732.2,0.1336]
[1753379202689,1.4237,3732.4,3732.3,4.13]
[1753379203094,1.8841,3732.4,3732.3,4.13]
[1753379205933,1.4094,3732.4,3731.8,0.9647]
[1753379206084,2.67951036,3732.1,3731.9,4.13]
[1753379206282,2.67951036,3732.1,3731.6,0.001]
[1753379206283,2.67974381,3731.7,3731.6,0.001]
[1753379206518,3.49261562,3731.6,3730.8,0.001]
[1753379206808,0.9472,3731.0,3730.9,4.13]
[1753379207113,2.68031842,3730.9,3730.8,0.001]
[1753379207410,3.60981842,3730.9,3730.8,4.131]
[1753379207775,0.9295,3730.9,3730.8,4.131]
[1753379208396,0.1344,3731.0,3730.8,4.131]
[1753379208614,0.4674,3731.4,3730.9,0.4645]
[1753379208800,0.1344,3731.3,3730.9,3.14479755]
[1753379209117,0.4674,3731.3,3731.0,6.50062461]
[1753379209277,0.1336,3731.4,3731.1,4.13]
[1753379209278,0.4674,3731.2,3731.1,4.13]
[1753379209613,0.4674,3731.2,3730.9,0.1344]
[1753379209785,0.4621,3731.1,3730.8,0.001]
[1753379209992,0.4621,3731.1,3731.0,4.13]
[1753379210328,0.4674,3731.1,3731.0,4.13]
[1753379211338,0.1344,3731.2,3731.0,4.13]
[1753379211515,0.1344,3731.2,3731.1,2.68017474]
[1753379211983,1.2197,3731.6,3731.2,2.68008469]
[1753379212183,0.1336,3731.4,3731.3,4.13]
[1753379212483,0.1336,3731.4,3731.3,14.2864872]
[1753379212829,0.1336,3732.1,3731.8,2.67960413]
[1753379213132,0.1336,3732.1,3731.9,4.13]
[1753379213335,0.1336,3732.1,3731.9,6.80958408]
[1753379213519,0.002,3732.5,3732.0,6.35042461]
[1753379213818,0.002,3732.5,3732.3,2.67929568]
[1753379213819,0.1356,3732.5,3732.3,2.67929568]
[1753379214020,0.603,3732.5,3732.4,4.13]
[1753379214326,0.002,3732.5,3732.4,6.80924123]
[1753379214525,0.002,3732.5,3732.4,4.13]
[1753379214813,0.4694,3732.5,3732.4,6.80924123]
[1753379215017,0.4694,3732.5,3732.4,4.13]
[1753379215805,0.4694,3732.5,3732.3,2.67928948]
[1753379215978,0.4694,3732.5,3732.4,4.13]
[1753379216180,0.4694,3732.5,3732.3,2.67928948]
[1753379216483,0.4694,3732.5,3732.4,4.13]
[1753379218893,0.4694,3732.5,3732.0,1.2942]
[1753379219093,0.4694,3732.5,3732.1,4.2636]
[1753379219389,0.4674,3732.4,3732.2,6.80937242]
[1753379219586,0.4674,3732.3,3732.2,2.67937242]
[1753379219782,0.4674,3732.3,3732.2,6.80937242]
[1753379219989,0.002,3732.5,3732.3,2.67931302]
[1753379220183,0.002,3732.5,3732.4,4.13]
[1753379220495,0.4694,3732.5,3732.4,4.13]
[1753379220717,0.002,3732.5,3732.4,4.13]
[1753379221294,0.4694,3732.5,3732.4,4.13]
[1753379222102,1.0651,3732.5,3731.9,2.81316358]
[1753379222280,0.5977,3732.5,3732.0,4.129]
[1753379222486,0.9295,3732.4,3732.0,4.129]
[1753379222803,0.4674,3732.3,3732.1,4.129]
[1753379223200,0.4621,3732.4,3731.6,0.8114]
[1753379223201,0.9295,3732.2,3731.6,0.8114]
[1753379223402,0.4674,3732.1,3731.7,4.7271]
[1753379223602,0.1336,3732.3,3732.1,2.6794435]
[1753379223904,0.1336,3732.3,3732.2,4.129]
[1753379224729,0.601,3732.3,3732.2,4.129]
[1753379225421,3.74241302,3732.3,3732.2,4.129]
[1753379225617,4.52691302,3732.3,3732.2,4.129]
[1753379232038,1.8476,3732.3,3732.2,4.129]
[1753379232412,0.1336,3732.3,3732.2,4.129]
[1753379232593,0.1356,3732.5,3732.2,4.5935]
[1753379232793,0.1356,3732.5,3732.3,0.4645]
[1753379233444,0.603,3732.5,3732.3,0.4645]
[1753379233937,0.603,3732.5,3732.2,4.129]
[1753379234123,0.4674,3732.4,3732.2,4.129]
[1753379234489,0.1356,3732.5,3732.2,6.80837797]
[1753379234708,0.603,3732.5,3732.2,7.27287797]
[1753379234923,0.603,3732.5,3732.2,4.5935]
[1753379235488,0.1356,3732.5,3732.2,0.4645]
[1753379235690,0.8943,3732.4,3732.3,4.128]
[1753379235924,4.3325938,3732.4,3732.3,4.128]
[1753379236117,3.70714123,3732.4,3732.3,4.128]
[1753379236427,4.50144123,3732.4,3732.3,4.128]
[1753379239546,1.8222,3732.4,3731.6,0.001]
[1753379239696,2.67965074,3731.9,3731.7,4.128]
[1753379239909,0.1336,3731.8,3731.7,4.128]
[1753379240103,0.5841,3731.8,3731.7,4.128]
[1753379241007,0.1336,3731.8,3731.7,4.128]
[1753379241613,0.1336,3731.8,3731.7,4.596]
[1753379242641,0.5841,3731.8,3731.7,4.128]
[1753379243429,0.5841,3731.8,3731.6,0.001]
[1753379243632,2.81327665,3731.8,3731.7,4.128]
[1753379243812,0.1336,3731.8,3731.7,4.128]
[1753379244218,0.5841,3731.8,3731.7,4.128]
[1753379244661,0.5841,3731.8,3731.6,0.001]
[1753379244859,0.1336,3731.8,3731.7,4.128]
[1753379245016,2.67974381,3731.7,3731.6,0.001]
[1753379245221,3.57404381,3731.7,3731.6,0.001]
[1753379245924,0.4505,3731.7,3731.6,4.129]
[1753379246137,3.57404381,3731.7,3731.6,4.129]
[1753379248715,3.13024381,3731.7,3731.6,4.129]
[1753379248918,0.4505,3731.7,3731.6,4.129]
[1753379249336,0.1336,3731.8,3731.6,4.597]
[1753379249545,0.1336,3731.8,3731.7,0.468]
[1753379251920,0.4505,3732.3,3731.8,2.67962693]
[1753379252121,0.1336,3732.1,3731.9,4.595]
[1753379253423,0.1336,3732.1,3732.0,6.4998362]
[1753379254144,0.1336,3732.1,3731.9,4.127]
[1753379254618,0.4505,3732.0,3731.9,4.127]
[1753379255023,0.1336,3732.1,3731.9,4.127]
[1753379255225,0.5841,3732.1,3731.9,4.127]
[1753379255448,0.4505,3732.0,3731.9,4.127]
[1753379256430,3.1300732,3732.0,3731.9,4.127]
[1753379256630,3.5738732,3732.0,3731.9,4.127]
[1753379257026,2.67963012,3731.9,3731.6,0.001]
[1753379257227,0.1336,3731.7,3731.6,0.001]
[1753379257433,3.58904381,3731.7,3731.6,4.128]
[1753379257767,0.5841,3731.7,3731.6,4.128]
[1753379258170,0.4505,3732.1,3731.6,7.27577154]
[1753379258333,0.1336,3731.9,3731.7,5.6016799]
[1753379258540,0.1336,3732.1,3731.8,0.468]
[1753379258741,0.1336,3732.1,3732.0,6.0318362]
[1753379259235,0.1336,3732.1,3732.0,6.4998362]
[1753379259436,0.002,3732.4,3732.3,2.67931302]
[1753379259663,0.002,3732.4,3732.3,8.16521302]
[1753379259860,0.002,3732.4,3732.3,11.94751302]
[1753379260072,0.002,3732.4,3732.3,12.08111302]
[1753379263748,0.002,3732.4,3732.3,13.18713436]
[1753379263944,0.002,3732.4,3732.3,5.0685]
[1753379264144,0.002,3732.4,3732.3,8.21581302]
[1753379264351,0.002,3732.4,3732.3,5.0685]
[1753379264682,0.002,3732.4,3732.3,14.56194922]
[1753379265189,0.002,3732.4,3732.3,10.43594922]
[1753379265389,0.002,3732.4,3732.3,18.91897337]
[1753379267071,0.002,3732.4,3732.3,14.79297337]
[1753379267282,0.002,3732.4,3732.3,18.91797337]
[1753379267595,0.002,3732.4,3732.3,19.32650202]
[1753379267897,0.002,3732.4,3732.3,9.51236582]
[1753379268099,0.002,3732.4,3732.3,4.53352865]
[1753379268595,0.002,3732.4,3732.3,7.21284167]
[1753379268812,0.002,3732.4,3732.3,7.67004167]
[1753379269100,0.002,3732.4,3732.3,8.87144167]
[1753379269461,0.002,3732.4,3732.3,10.62971463]
[1753379270099,0.002,3732.4,3732.3,14.17971463]
[1753379275045,0.002,3733.1,3733.0,2.6788106]
[1753379275325,0.002,3733.1,3733.0,17.1938468]
[1753379275476,0.002,3733.1,3733.0,19.31472152]
[1753379275682,0.002,3733.1,3733.0,20.08622152]
[1753379276234,0.002,3733.1,3733.0,19.22192152]
[1753379276532,0.002,3733.1,3733.0,16.22192152]
[1753379276884,0.4684,3733.1,3733.0,7.05407472]
[1753379277079,0.002,3733.1,3733.0,10.19008532]
[1753379277698,0.002,3733.1,3733.0,9.73288532]
[1753379278413,0.002,3733.1,3733.0,7.05407472]
[1753379279429,0.002,3733.1,3733.0,4.2586]
[1753379279595,0.4684,3733.1,3733.0,4.2586]
[1753379279788,0.9013,3733.1,3733.0,4.125]
[1753379279996,4.34973884,3733.1,3733.0,4.125]
[1753379280191,2.67882198,3733.0,3732.5,6.969]
[1753379280390,0.1336,3732.8,3732.6,4.124]
[1753379280628,0.4664,3732.7,3732.6,4.124]
[1753379280809,1.2046,3733.1,3732.6,4.124]
[1753379280810,0.6,3733.0,3732.7,6.0318362]
[1753379281013,0.002,3733.1,3732.8,5.6474]
[1753379281189,0.4664,3733.0,3732.8,4.8759]
[1753379281395,0.002,3733.1,3732.8,4.124]
[1753379282012,0.4664,3733.0,3732.8,4.124]
[1753379282216,0.4664,3732.9,3732.8,4.124]
[1753379282416,0.4664,3732.9,3732.5,6.969]
[1753379282417,0.8301,3732.8,3732.5,6.969]
[1753379282621,0.8301,3732.8,3732.6,4.124]
[1753379282622,1.3966,3732.8,3732.6,4.124]
[1753379282828,0.4664,3732.7,3732.6,4.124]
[1753379283335,0.1336,3732.8,3732.6,5.94104647]
[1753379283496,0.4664,3733.0,3732.7,6.0318362]
[1753379283697,0.4664,3733.0,3732.8,4.124]
[1753379284602,0.4664,3733.0,3732.8,6.80294189]
[1753379284800,0.4664,3733.0,3732.8,4.124]
[1753379287156,0.4684,3733.0,3732.8,4.124]
[1753379287663,0.002,3733.0,3732.5,7.1026]
[1753379287833,2.67897855,3732.8,3732.6,4.124]
[1753379288022,0.4664,3732.7,3732.6,4.124]
[1753379288222,3.5783259,3732.7,3732.6,4.124]
[1753379288440,4.3862259,3732.7,3732.6,4.124]
[1753379288689,1.2743,3732.7,3732.6,4.124]
[1753379289252,0.4664,3732.7,3732.6,4.124]
[1753379290952,0.1336,3732.8,3732.6,4.124]
[1753379291156,0.002,3733.0,3732.7,3.35934224]
[1753379291327,0.4684,3733.0,3732.8,4.124]
[1753379291653,3.57818237,3732.9,3732.0,7.77257917]
[1753379291960,1.3863,3732.8,3732.4,4.124]
[1753379292325,0.8993,3732.7,3732.4,4.124]
[1753379292525,0.1336,3732.8,3732.6,2.67905672]
[1753379292858,0.6,3732.8,3732.7,4.124]
[1753379293042,0.1336,3732.8,3732.7,4.124]
[1753379293857,0.6,3732.8,3732.7,4.124]
[1753379294160,1.0329,3732.8,3732.7,4.124]
[1753379294523,3.71186548,3732.8,3732.3,0.54212865]
[1753379294759,0.8993,3732.7,3732.4,4.124]
[1753379295123,0.8993,3732.6,3732.4,4.124]
[1753379295323,0.8993,3732.5,3732.4,4.124]
[1753379295544,0.8937,3732.5,3732.4,4.124]
[1753379295724,1.6977,3732.5,3732.4,4.124]
[1753379296861,0.4608,3732.5,3732.4,4.124]
[1753379298163,0.1336,3732.6,3732.4,6.80321451]
[1753379298363,0.4608,3732.5,3732.4,4.124]
[1753379298968,0.002,3733.0,3732.4,6.2725494]
[1753379299151,0.002,3733.0,3732.9,9.46481857]
[1753379299350,0.002,3733.0,3732.9,4.124]
[1753379299665,0.002,3733.0,3732.9,6.80288237]
[1753379300260,0.4628,3733.0,3732.9,4.124]
[1753379301074,0.9335,3733.0,3732.3,0.40852865]
[1753379301262,1.89976,3732.9,3732.4,4.124]
[1753379301463,0.4608,3732.8,3732.4,4.124]
[1753379302231,0.4608,3732.7,3732.4,7.23609028]
[1753379302733,0.4608,3732.6,3732.4,6.80319028]
[1753379303166,0.7974,3732.9,3732.4,6.80319028]
[1753379303370,0.4608,3732.5,3732.4,6.80319028]
[1753379303682,0.4608,3732.8,3732.5,2.67912636]
[1753379303873,0.7974,3732.9,3732.6,4.124]
[1753379304042,0.4608,3732.7,3732.6,4.124]
[1753379304545,0.002,3733.0,3732.8,2.67893172]
[1753379304742,0.4628,3733.0,3732.9,4.124]
[1753379305442,0.9335,3733.0,3732.9,4.124]
[1753379305843,4.75332098,3733.0,3732.9,4.124]
[1753379307380,2.07451038,3733.0,3732.9,4.124]
[1753379307675,1.7127,3733.0,3732.9,4.124]
[1753379308044,4.3915106,3733.0,3732.9,4.124]
[1753379308238,1.7127,3733.0,3732.9,4.124]
[1753379308439,1.7127,3733.0,3732.9,4.5569]
[1753379308440,0.002,3733.0,3732.9,4.5569]
[1753379308788,0.002,3733.0,3732.9,7.23578237]
[1753379308991,0.002,3733.0,3732.9,8.33541246]
[1753379310282,0.4628,3733.0,3732.9,4.124]
[1753379310587,0.002,3733.2,3733.1,2.67873884]
[1753379310744,0.002,3733.2,3733.1,6.45193884]
[1753379310946,0.002,3733.2,3733.1,11.87813884]
[1753379311161,0.002,3733.2,3733.1,14.51836655]
[1753379312463,0.002,3733.2,3733.1,9.52506655]
[1753379312647,0.002,3733.2,3733.1,8.01283884]
[1753379315381,0.002,3733.2,3733.1,8.32713884]
[1753379316467,0.002,3733.2,3733.1,8.01283884]
[1753379317257,0.002,3733.2,3733.1,8.32713884]
[1753379318477,0.002,3733.2,3733.1,8.01283884]
[1753379318683,0.002,3733.2,3733.1,9.99574997]
[1753379319287,0.002,3733.2,3733.1,10.42864997]
[1753379320555,0.002,3733.2,3733.1,10.56224997]
[1753379322398,0.002,3733.2,3733.1,10.87654997]
[1753379323607,0.002,3733.2,3733.1,11.42654997]
[1753379324488,0.002,3733.3,3733.2,18.51510709]
[1753379324798,0.002,3733.3,3733.2,10.46007485]
[1753379325308,0.002,3733.3,3733.2,16.48471035]
[1753379325597,0.002,3733.3,3733.2,27.82407835]
[1753379325985,0.002,3733.3,3733.2,21.95442535]
[1753379326689,0.002,3733.3,3733.2,13.48989435]
[1753379326885,0.002,3733.3,3733.2,23.93426635]
[1753379327672,0.00452409,3733.4,3733.3,37.02789534]
[1753379327865,0.00452409,3733.4,3733.3,43.8499871]
[1753379328093,0.00452409,3733.4,3733.3,44.7415871]
[1753379328287,0.00452409,3733.4,3733.3,34.4710431]
[1753379328593,0.00452409,3733.4,3733.3,17.7738061]
[1753379328890,0.47032409,3733.4,3733.3,13.9835871]
[1753379329063,0.00452409,3733.4,3733.3,14.4272871]
[1753379329259,0.4658,3734.8,3733.5,3.55]
[1753379329460,0.5994,3735.0,3734.6,2.67766293]
[1753379329663,0.4658,3735.0,3734.6,6.93426293]
[1753379329861,0.4658,3735.0,3734.6,7.37796293]
[1753379330682,0.89,3735.3,3734.6,7.92796293]
[1753379330683,0.7564,3735.3,3734.6,7.92796293]
[1753379330887,0.4658,3735.1,3734.6,7.92796293]
[1753379331085,0.4658,3734.8,3734.6,0.1336]
[1753379331298,2.67729079,3735.2,3734.6,0.1336]
[1753379331299,0.4678,3734.7,3734.6,4.2586]
[1753379332778,0.9013,3734.7,3734.6,4.125]
[1753379333377,0.9013,3734.7,3734.6,4.53327705]
[1753379334815,3.57889123,3734.7,3734.6,4.53327705]
[1753379335386,3.71249123,3734.7,3734.6,4.53527705]
[1753379336109,4.54329123,3734.7,3734.6,4.53527705]
[1753379340384,4.54329123,3734.7,3734.6,0.40827705]
[1753379341022,7.54329123,3734.7,3734.6,1e-08]
[1753379344110,3.14539123,3734.7,3734.6,1e-08]
[1753379344537,3.57889123,3734.7,3734.6,1e-08]
[1753379345109,3.14539123,3734.7,3734.6,1e-08]
[1753379345537,3.57889123,3734.7,3734.6,1e-08]
[1753379345743,4.34289123,3734.7,3734.6,1e-08]
[1753379347440,7.34289123,3734.7,3734.6,1e-08]
[1753379349749,0.13081626,3734.7,3734.6,1e-08]
[1753379349908,3.27420749,3734.7,3734.6,1e-08]
[1753379350112,0.59661626,3734.7,3734.6,1e-08]
[1753379350509,3.27420749,3734.7,3734.6,1e-08]
[1753379350926,0.59661626,3734.7,3734.6,1e-08]
[1753379352013,0.13081626,3734.7,3734.6,1e-08]
[1753379352416,0.13081626,3734.7,3734.6,0.00100001]
[1753379352845,0.13081626,3734.7,3734.6,0.44470001]
[1753379353844,2.12182302,3734.7,3734.6,0.00100001]
[1753379354043,4.93301425,3734.7,3734.6,0.00100001]
[1753379357159,0.13081626,3734.7,3734.6,0.00100001]
[1753379357335,3.74970749,3734.7,3734.6,0.00100001]
[1753379358624,3.28050749,3734.7,3734.6,0.00100001]
[1753379359562,3.74970749,3734.7,3734.6,0.00100001]
[1753379359747,4.51530749,3734.7,3734.6,0.00100001]
[1753379359949,4.38649123,3734.7,3734.6,0.00100001]
[1753379361966,3.44519123,3734.7,3734.6,0.00100001]
[1753379362265,3.15169123,3734.7,3734.6,0.00100001]
[1753379363973,3.62089123,3734.7,3734.6,0.00100001]
[1753379364832,2.67959123,3734.7,3734.6,0.00100001]
[1753379365036,3.15169123,3734.7,3734.6,0.00100001]
[1753379366372,3.62089123,3734.7,3734.6,0.00100001]
[1753379366533,4.39979123,3734.7,3734.6,0.00100001]
[1753379367151,7.39979123,3734.7,3734.6,1e-08]
[1753379369480,11.54679123,3734.7,3734.6,1e-08]
[1753379373182,6.93059123,3734.7,3734.6,1e-08]
[1753379373481,7.39979123,3734.7,3734.6,1e-08]
[1753379373838,7.97782816,3734.7,3734.6,1e-08]
[1753379375177,14.00621652,3734.7,3734.6,1e-08]
[1753379379649,14.55621652,3734.7,3734.6,1e-08]
[1753379380355,15.27694335,3734.7,3734.6,1e-08]
[1753379380557,3.46456492,3733.9,3733.8,0.001]
[1753379380878,2.67845185,3733.5,3733.4,0.34151969]
[1753379381095,2.81205185,3733.5,3733.4,0.34151969]
[1753379381450,3.75335185,3733.5,3733.4,0.34151969]
[1753379383187,2.81205185,3733.5,3733.4,0.34151969]
[1753379383485,2.81205185,3733.5,3733.4,0.79151969]
[1753379385247,2.81205185,3733.5,3733.4,0.34151969]
[1753379386412,3.27135185,3733.5,3733.4,0.34151969]
[1753379386615,4.33439787,3733.5,3733.4,0.34151969]
[1753379387795,8.14179787,3733.5,3733.4,0.34151969]
[1753379388001,12.27479787,3733.5,3733.4,0.34151969]
[1753379388398,5.14179787,3733.5,3733.4,0.34151969]
[1753379388593,12.27679787,3733.5,3733.4,0.34151969]
[1753379388800,11.81749787,3733.5,3733.4,0.34151969]
[1753379389002,12.27679787,3733.5,3733.4,0.34151969]
[1753379391116,12.27679787,3733.5,3733.4,1e-08]
[1753379391117,12.82679787,3733.5,3733.4,1e-08]
[1753379391299,12.82679787,3733.5,3733.1,0.001]
[1753379391300,6.50536709,3733.2,3733.1,1e-08]
[1753379391500,2.67916945,3732.5,3732.4,0.001]
[1753379391857,2.81276945,3732.5,3732.4,0.001]
[1753379392204,3.27206945,3732.5,3732.4,0.001]
[1753379392408,2.81276945,3732.5,3732.4,0.001]
[1753379392620,2.81276945,3732.5,3732.4,1.5581]
[1753379392621,0.1336,3732.5,3732.4,1.5581]
[1753379392819,0.1336,3732.5,3732.4,1.71401]
[1753379393408,1.2215,3733.7,3732.4,1.71401]
[1753379393752,0.1336,3733.0,3732.8,3.47729835]
[1753379393938,0.1336,3733.0,3732.8,0.7984]
[1753379394244,0.1336,3733.0,3732.9,0.7587]
[1753379396602,0.1336,3733.0,3732.9,0.7597]
[1753379396834,0.1336,3733.0,3732.9,1.18340229]
[1753379397153,0.1336,3733.6,3733.2,2.67866346]
[1753379397455,0.1336,3733.6,3733.3,5.6726]
[1753379397777,0.1336,3733.6,3733.4,0.4444]
[1753379398045,0.1336,3733.6,3733.5,0.4444]
[1753379399540,0.1336,3733.6,3733.3,4.9139]
[1753379399739,0.1336,3733.6,3733.4,0.4444]
[1753379400448,2.67873697,3733.2,3732.9,0.8001]
[1753379400648,2.67852359,3733.4,3733.3,4.132]
[1753379400945,3.26089942,3733.4,3733.3,4.132]
[1753379401245,2.67847183,3733.5,3733.3,4.132]
[1753379401467,0.002,3733.8,3733.4,0.4444]
[1753379401617,0.002,3733.8,3733.4,1.1304]
[1753379401618,2.6802928,3733.8,3733.4,1.1304]
[1753379401822,2.67831718,3733.7,3733.5,0.4444]
[1753379402320,2.68025039,3733.8,3733.5,0.4444]
[1753379402519,0.4593,3733.7,3733.3,4.132]
[1753379402721,2.67845185,3733.5,3733.3,4.132]
[1753379402921,2.67846372,3733.5,3733.3,4.132]
[1753379403116,0.4593,3733.6,3733.1,1.2003]
[1753379403352,2.67855821,3733.4,3733.2,4.134]
[1753379403521,3.13785821,3733.4,3733.2,4.134]
[1753379403856,3.13785821,3733.4,3732.9,0.001]
[1753379403857,2.6788106,3733.0,3732.9,0.001]
[1753379404052,2.6788106,3733.0,3732.9,4.134]
[1753379404258,2.67875774,3733.1,3732.9,4.134]
[1753379404425,0.4593,3733.0,3732.9,4.134]
[1753379404956,0.4593,3733.4,3732.9,4.134]
[1753379405365,4.135,3734.6,3732.9,4.134]
[1753379405366,0.002,3733.8,3733.0,0.4444]
[1753379405565,2.67864374,3733.3,3733.0,0.4444]
[1753379405764,2.67864374,3733.3,3733.1,0.4444]
[1753379405973,2.67853142,3733.4,3733.1,0.4444]
[1753379406149,2.67853142,3733.4,3733.2,0.4444]
[1753379406346,0.4593,3733.7,3733.2,0.4444]
[1753379406347,2.67859534,3733.3,3733.2,0.4444]
[1753379406675,0.2700125,3733.8,3733.2,0.4444]
[1753379406859,2.6787431,3733.1,3732.9,4.134]
[1753379407055,2.6788106,3733.0,3732.9,0.001]
[1753379407359,2.6788106,3733.0,3732.9,4.132]
[1753379408063,2.6788106,3733.0,3732.9,0.001]
[1753379408280,3.1381106,3733.0,3732.9,4.131]
[1753379408479,2.67974381,3731.7,3731.6,0.001]
[1753379408851,3.13904381,3731.7,3731.6,0.001]
[1753379409181,6.60584381,3731.7,3731.6,0.001]
[1753379409364,9.02745661,3731.7,3731.6,1e-08]
[1753379410293,0.29540675,3731.7,3731.6,1e-08]
[1753379410454,0.1336,3731.7,3731.6,1e-08]
[1753379411194,0.5929,3731.7,3731.6,1e-08]
[1753379411548,0.5929,3731.7,3731.6,0.44440001]
[1753379411549,0.1336,3731.7,3731.6,0.44440001]
[1753379411748,0.7858,3732.7,3731.6,0.75870001]
[1753379411994,0.57599368,3733.1,3731.6,0.75870001]
[1753379411995,0.1336,3732.4,3731.7,0.8923]
[1753379412164,0.1336,3732.4,3731.8,4.223172]
[1753379412364,0.1336,3732.4,3732.0,2.6795284]
[1753379412595,0.1336,3732.4,3732.3,2.67931302]
[1753379412754,2.67847243,3733.5,3732.4,3.43972062]
[1753379412954,0.1336,3732.7,3732.5,4.9447]
[1753379413164,0.1336,3732.7,3732.5,4.5003]
[1753379413362,0.1336,3732.7,3732.6,0.4444]
[1753379414157,0.1336,3732.7,3732.6,3.12349767]
[1753379414489,2.67873027,3733.2,3732.5,4.186]
[1753379414693,0.5929,3732.7,3732.5,4.186]
[1753379414892,0.1336,3732.7,3732.5,4.186]
[1753379415057,0.4593,3732.6,3732.5,4.186]
[1753379415399,0.1336,3732.7,3732.5,4.186]
[1753379415972,0.4915,3732.6,3732.5,4.186]
[1753379416568,0.1336,3732.7,3732.5,4.186]
[1753379416801,0.6251,3732.7,3732.5,4.186]
[1753379417004,0.4915,3732.6,3732.5,4.186]
[1753379417705,0.1336,3732.7,3732.5,4.186]
[1753379418003,0.6251,3732.7,3732.5,4.186]
[1753379418503,0.6251,3732.7,3732.5,4.187]
[1753379418681,0.6251,3732.7,3732.6,4.182]
[1753379421294,0.1336,3732.7,3732.6,4.182]
[1753379421719,0.6251,3732.7,3732.6,4.182]
[1753379423710,1.0745,3732.7,3732.6,4.182]
[1753379424013,0.6251,3732.7,3732.6,4.182]
[1753379424419,1.0774012,3732.7,3732.5,0.001]
[1753379424591,0.9409,3732.6,3732.5,0.001]
[1753379424795,0.6251,3732.7,3732.5,0.001]
[1753379425014,0.6251,3732.7,3732.5,4.175]